bitfinex/quotes_ETHUSD_20251026
["timestamp","ask_amount","ask_price","bid_price","bid_amount"]
[1761439493695,0.1274,3957.4,3957.3,3.17700001]
[1761439506882,0.1274,3957.4,3957.3,6.27578387]
[1761439507044,0.001,3957.4,3957.3,6.27578387]
[1761439511254,0.001,3957.4,3957.3,3.17600001]
[1761439511255,0.44,3957.4,3957.3,3.17600001]
[1761439511477,0.5664,3957.4,3957.3,3.17600001]
[1761439512297,0.5664,3957.4,3957.3,1e-08]
[1761439512494,0.5664,3957.4,3957.3,3.17600001]
[1761439518239,0.5664,3957.4,3957.3,1e-08]
[1761439518409,0.5664,3957.4,3957.3,3.17600001]
[1761439521432,0.001,3957.9,3957.8,2.52665622]
[1761439521633,0.001,3957.9,3957.8,10.06915806]
[1761439521832,0.001,3957.9,3957.8,11.33347493]
[1761439522193,0.001,3957.9,3957.8,11.43455356]
[1761439522627,0.001,3957.9,3957.8,11.67019281]
[1761439523499,0.001,3957.9,3957.8,11.43455356]
[1761439525748,0.001,3957.9,3957.8,11.43235356]
[1761439525945,0.001,3957.9,3957.8,8.25635356]
[1761439526240,0.001,3957.9,3957.8,11.43235356]
[1761439526831,0.001,3957.9,3957.8,8.25635356]
[1761439527056,0.001,3957.9,3957.8,11.33127493]
[1761439527633,0.001,3957.9,3957.8,11.33027493]
[1761439528048,0.001,3957.9,3957.8,6.96377309]
[1761439528255,0.001,3957.9,3957.8,5.70165622]
[1761439531335,0.001,3957.9,3957.8,2.52665622]
[1761439531536,0.001,3957.9,3957.8,5.70165622]
[1761439535458,0.001,3957.9,3957.8,2.52665622]
[1761439535657,0.001,3957.9,3957.8,5.70165622]
[1761439535881,0.001,3957.9,3957.8,6.53714014]
[1761439539597,0.001,3957.9,3957.8,6.53914014]
[1761439541189,0.001,3957.9,3957.8,0.83748392]
[1761439541390,0.4681,3957.9,3957.8,0.002]
[1761439541560,0.4681,3957.9,3957.8,3.177]
[1761439542176,0.4681,3957.9,3957.8,0.002]
[1761439542369,0.4681,3957.9,3957.8,3.177]
[1761439542370,0.5945,3957.9,3957.8,3.177]
[1761439546872,0.5945,3957.9,3957.8,0.002]
[1761439547067,3.12109238,3957.9,3957.8,3.177]
[1761439547481,3.12109238,3957.9,3957.8,0.002]
[1761439550214,0.5945,3957.9,3957.8,0.002]
[1761439551099,3.12109238,3957.9,3957.8,0.002]
[1761439551414,0.5945,3957.9,3957.8,0.002]
[1761439555111,0.1274,3957.9,3957.8,0.002]
[1761439555484,0.5945,3957.9,3957.8,0.002]
[1761439555914,0.1274,3957.9,3957.8,0.002]
[1761439556319,0.1274,3957.9,3957.8,3.177]
[1761439556728,0.5945,3957.9,3957.8,3.177]
[1761439557744,0.1274,3957.9,3957.8,3.177]
[1761439558133,0.5945,3957.9,3957.8,3.177]
[1761439561006,0.001,3957.9,3957.8,3.79237918]
[1761439561623,0.4471,3957.9,3957.8,3.79237918]
[1761439561825,0.4471,3957.9,3957.8,6.3190354]
[1761439562022,0.001,3957.9,3957.8,9.8927799]
[1761439569364,0.001,3957.9,3957.8,7.36612368]
[1761439569559,0.4651,3957.9,3957.8,0.61737918]
[1761439569731,0.5915,3957.9,3957.8,3.177]
[1761439570762,0.5915,3957.9,3957.8,0.002]
[1761439570962,3.11809238,3957.9,3957.8,0.002]
[1761439571165,3.11809238,3957.9,3957.8,3.177]
[1761439571460,0.5915,3957.9,3957.8,3.177]
[1761439571998,0.5915,3957.9,3957.8,0.002]
[1761439572201,0.5915,3957.9,3957.8,3.177]
[1761439572601,3.11809238,3957.9,3957.8,3.177]
[1761439573273,0.5915,3957.9,3957.8,3.177]
[1761439573769,3.11809238,3957.9,3957.8,3.177]
[1761439573994,3.11809238,3957.9,3957.8,0.002]
[1761439574589,2.65399238,3957.9,3957.8,0.002]
[1761439574790,3.11809238,3957.9,3957.8,0.002]
[1761439577662,5.18017238,3957.9,3957.8,0.002]
[1761439577938,5.7249765,3957.9,3957.8,0.002]
[1761439583166,5.18017238,3957.9,3957.8,0.002]
[1761439585505,3.62497238,3957.9,3957.8,0.002]
[1761439587908,5.18017238,3957.9,3957.8,0.002]
[1761439588211,5.72450324,3957.9,3957.8,0.002]
[1761439589926,9.29824774,3957.9,3957.8,0.002]
[1761439590087,10.20547245,3957.9,3957.8,0.002]
[1761439591331,5.72450324,3957.9,3957.8,0.002]
[1761439591527,4.16877434,3957.9,3957.8,0.002]
[1761439591816,3.62497238,3957.9,3957.8,0.002]
[1761439599206,5.72448153,3957.9,3957.8,0.002]
[1761439618407,5.26038153,3957.9,3957.8,0.002]
[1761439619126,5.71368153,3957.9,3957.8,0.002]
[1761439619709,3.70518153,3957.9,3957.8,0.002]
[1761439620506,4.14898153,3957.9,3957.8,0.002]
[1761439620908,3.19830153,3957.9,3957.8,0.002]
[1761439621092,0.67170915,3957.9,3957.8,0.002]
[1761439622215,3.19830153,3957.9,3957.8,0.002]
[1761439622614,0.67170915,3957.9,3957.8,0.002]
[1761439623115,2.65399238,3957.9,3957.8,0.002]
[1761439628010,0.001,3957.9,3957.8,0.002]
[1761439631233,0.001,3957.9,3957.8,0.5725973]
[1761439633109,0.001,3957.9,3957.8,0.5747973]
[1761439633797,0.001,3957.9,3957.8,7.46554746]
[1761439634034,0.001,3957.9,3957.8,7.46774746]
[1761439641324,0.001,3957.9,3957.8,7.59414746]
[1761439643662,0.001,3957.9,3957.8,9.14934746]
[1761439644665,0.001,3957.9,3957.8,9.65622746]
[1761439644861,0.001,3958.2,3958.1,4.08166471]
[1761439645028,0.001,3958.2,3958.1,7.28092935]
[1761439645357,0.001,3958.2,3958.1,7.38426471]
[1761439645566,0.001,3958.2,3958.1,7.48534181]
[1761439655812,0.001,3958.6,3958.2,2.06428]
[1761439656009,0.001,3958.6,3958.5,8.44770336]
[1761439656177,0.001,3958.6,3958.5,11.74810336]
[1761439656382,0.001,3958.6,3958.5,11.75030336]
[1761439656583,0.001,3958.6,3958.5,11.85137024]
[1761439674717,0.001,3958.6,3958.5,11.84917024]
[1761439674920,0.001,3958.6,3958.5,13.47455642]
[1761439675130,0.001,3958.6,3958.5,13.98143642]
[1761439676121,0.001,3958.6,3958.5,13.98043642]
[1761439676744,0.001,3958.6,3958.5,13.18455454]
[1761439677271,0.001,3958.6,3958.5,9.37827454]
[1761439677555,0.4324,3958.6,3958.3,0.002]
[1761439681122,2.95857979,3958.6,3958.3,0.002]
[1761439681656,0.4316,3958.5,3958.3,0.002]
[1761439682155,2.52627324,3958.4,3958.3,0.002]
[1761439682355,2.52627324,3958.4,3958.3,0.27]
[1761439682554,0.4316,3958.4,3958.3,0.27]
[1761439685879,2.95787324,3958.4,3958.3,0.27]
[1761439686588,0.4316,3958.4,3958.3,0.27]
[1761439687290,0.828,3958.4,3958.3,0.27]
[1761439688307,0.828,3958.4,3958.3,0.002]
[1761439688308,4.90947324,3958.4,3958.3,0.002]
[1761439688591,2.52640088,3958.2,3958.1,0.002]
[1761439688789,4.08172854,3958.0,3957.9,0.002]
[1761439688957,4.20812854,3958.0,3957.9,0.002]
[1761439689163,4.67892854,3958.0,3957.9,0.002]
[1761439692004,8.7562206,3958.0,3957.9,0.002]
[1761439692236,9.29886744,3958.0,3957.9,0.002]
[1761439692887,5.72845538,3958.0,3957.9,0.002]
[1761439694797,5.18580854,3958.0,3957.9,0.002]
[1761439694991,4.55252854,3958.0,3957.9,0.002]
[1761439695221,4.67892854,3958.0,3957.9,0.002]
[1761439695954,4.78006339,3958.0,3957.9,0.002]
[1761439696888,3.22486339,3958.0,3957.9,0.002]
[1761439697327,0.69833485,3958.0,3957.9,0.002]
[1761439697486,0.5972,3958.0,3957.9,0.002]
[1761439697686,0.1264,3958.0,3957.9,0.002]
[1761439698397,0.5972,3958.0,3957.9,0.002]
[1761439700296,3.12372854,3958.0,3957.9,0.002]
[1761439702219,0.5972,3958.0,3957.9,0.002]
[1761439705019,0.001,3958.4,3957.9,0.57277314]
[1761439705341,0.1264,3958.3,3958.1,6.0968271]
[1761439706331,0.1264,3958.3,3958.0,2.52652315]
[1761439706532,0.5972,3958.3,3958.1,0.61009352]
[1761439706856,0.5972,3958.3,3958.2,3.175]
[1761439706857,0.1264,3958.3,3958.2,3.175]
[1761439707821,0.5972,3958.3,3958.2,3.175]
[1761439708428,0.5972,3958.3,3957.9,0.002]
[1761439708629,0.4708,3958.2,3958.0,3.175]
[1761439709048,0.1264,3958.3,3958.0,3.74577057]
[1761439709619,0.1264,3958.3,3958.1,3.175]
[1761439710343,0.5972,3958.3,3958.1,3.175]
[1761439711456,0.1264,3958.3,3958.1,3.175]
[1761439711657,0.1274,3958.3,3958.1,5.70143282]
[1761439712348,0.1274,3958.3,3958.1,6.93875866]
[1761439713237,0.1274,3958.3,3958.1,4.41232584]
[1761439714049,0.1274,3958.3,3958.1,6.93877533]
[1761439714559,0.1274,3958.3,3958.1,4.41232584]
[1761439715136,0.1274,3958.3,3958.1,6.93878404]
[1761439715547,0.1274,3958.3,3958.1,4.41232584]
[1761439716047,0.1274,3958.3,3958.1,6.93878799]
[1761439716252,0.1274,3958.3,3958.2,1.10819706]
[1761439716668,0.1274,3958.3,3958.2,3.63459794]
[1761439716853,0.1274,3958.3,3958.2,7.20501]
[1761439718580,0.001,3958.3,3958.2,7.20501]
[1761439727087,0.4719,3958.3,3958.2,3.174]
[1761439727290,0.4719,3958.3,3957.9,0.1284]
[1761439727291,0.5983,3958.3,3957.9,0.002]
[1761439727453,0.1264,3958.1,3958.0,3.174]
[1761439727785,0.1264,3958.1,3958.0,3.175]
[1761439728088,0.5973,3958.1,3957.9,0.002]
[1761439728285,2.52652854,3958.0,3957.9,0.002]
[1761439728455,2.99742854,3958.0,3957.9,0.002]
[1761439731279,8.1230406,3958.0,3957.9,0.002]
[1761439731499,8.66731846,3958.0,3957.9,0.002]
[1761439731697,9.34577862,3958.0,3957.9,0.002]
[1761439733273,5.0969064,3958.0,3957.9,0.002]
[1761439737817,0.4709,3958.0,3957.9,0.002]
[1761439738429,0.5973,3958.0,3957.9,0.002]
[1761439740502,0.1264,3958.0,3957.9,0.002]
[1761439744817,0.5676,3958.0,3957.9,0.002]
[1761439745021,3.09412854,3958.0,3957.9,0.002]
[1761439746627,5.06626963,3958.0,3957.9,0.002]
[1761439753053,4.52292854,3958.0,3957.9,0.002]
[1761439753235,5.06658934,3958.0,3957.9,0.002]
[1761439753555,4.52292854,3958.0,3957.9,0.002]
[1761439755437,5.06707024,3958.0,3957.9,0.002]
[1761439756025,4.08172854,3958.0,3957.9,0.002]
[1761439756226,5.06509289,3958.0,3957.9,0.002]
[1761439756653,5.19149289,3958.0,3957.9,0.002]
[1761439758357,4.75229289,3958.0,3957.9,0.002]
[1761439758542,5.19149289,3958.0,3957.9,0.002]
[1761439759344,3.63629289,3958.0,3957.9,0.002]
[1761439759895,0.001,3958.1,3957.9,0.002]
[1761439760034,0.1264,3958.0,3957.9,0.002]
[1761439761578,0.001,3958.5,3958.1,1.5552]
[1761439761750,0.001,3959.0,3958.8,2.52601798]
[1761439762075,0.001,3959.0,3958.8,12.71334358]
[1761439762375,0.001,3959.0,3958.8,5.920778]
[1761439762673,0.001,3959.0,3958.8,3.196]
[1761439763175,0.001,3959.0,3958.7,3.198]
[1761439763458,0.001,3959.0,3958.8,0.58252218]
[1761439764063,0.001,3959.0,3958.8,3.78052218]
[1761439764264,0.001,3959.0,3958.2,1.23646585]
[1761439764435,0.4502,3958.9,3958.4,3.29907914]
[1761439764638,0.4502,3958.9,3958.4,3.198]
[1761439764836,0.6838,3958.9,3958.4,3.198]
[1761439765232,0.4392,3958.8,3958.0,2.52647291]
[1761439765436,0.2446,3958.9,3958.1,3.198]
[1761439765957,0.2446,3958.9,3958.0,0.7351675]
[1761439765958,0.6838,3958.9,3958.0,0.7351675]
[1761439766157,0.6838,3958.9,3958.2,3.198]
[1761439766464,0.4392,3958.8,3958.3,0.39331675]
[1761439766768,0.4392,3958.8,3957.9,0.002]
[1761439766769,1.5552,3958.6,3957.9,0.002]
[1761439766956,2.52633733,3958.3,3957.9,0.002]
[1761439767161,2.96560424,3958.2,3957.9,0.002]
[1761439767469,0.4392,3958.2,3957.9,0.002]
[1761439767673,0.4392,3958.1,3957.9,0.002]
[1761439767873,0.4392,3958.1,3957.3,1e-08]
[1761439767874,4.0819839,3957.6,3957.3,1e-08]
[1761439768256,4.5211839,3957.6,3957.3,1e-08]
[1761439768685,4.08204775,3957.5,3957.3,1e-08]
[1761439768878,4.52124775,3957.5,3957.3,1e-08]
[1761439769696,7.72624775,3957.5,3957.3,1e-08]
[1761439770280,12.59870575,3957.5,3957.3,1e-08]
[1761439770584,13.14155068,3957.5,3957.3,1e-08]
[1761439770748,8.77597268,3957.5,3957.3,1e-08]
[1761439771484,8.90237268,3957.5,3957.3,1e-08]
[1761439773452,9.00352825,3957.5,3957.3,1e-08]
[1761439775368,9.00352825,3957.5,3957.1,0.012]
[1761439775369,4.58911932,3957.2,3957.1,1e-08]
[1761439775562,5.25836425,3957.2,3957.1,1e-08]
[1761439775765,6.37521143,3957.2,3957.1,1e-08]
[1761439776399,5.69756425,3957.2,3957.1,1e-08]
[1761439776762,5.82433038,3957.2,3957.1,1e-08]
[1761439777299,5.69756425,3957.2,3957.1,1e-08]
[1761439778168,2.52729478,3956.8,3956.1,0.01]
[1761439778363,7.84719478,3956.8,3956.1,0.01]
[1761439778767,7.94837389,3956.8,3956.1,0.01]
[1761439781702,8.45525389,3956.8,3956.1,0.01]
[1761439782919,8.45525389,3956.8,3956.6,0.002]
[1761439793640,8.45525389,3956.8,3956.3,0.002]
[1761439793641,3.03443029,3956.4,3956.3,0.002]
[1761439793822,12.70366319,3956.4,3956.3,0.002]
[1761439793992,13.26436319,3956.4,3956.3,0.002]
[1761439794401,13.36555459,3956.4,3956.3,0.002]
[1761439796217,3.03455807,3956.2,3956.1,1e-08]
[1761439796530,5.25800001,3956.2,3956.1,1e-08]
[1761439796731,5.69230001,3956.2,3956.1,1e-08]
[1761439796938,6.59691356,3956.2,3956.1,1e-08]
[1761439797112,5.69230001,3956.2,3956.1,1e-08]
[1761439799440,7.05172871,3956.2,3956.1,1e-08]
[1761439800448,5.69230001,3956.2,3956.1,1e-08]
[1761439801056,7.05199176,3956.2,3956.1,1e-08]
[1761439801424,7.05199176,3956.2,3955.9,1e-08]
[1761439801425,3.03468586,3956.0,3955.9,1e-08]
[1761439801652,8.4591278,3956.0,3955.9,1e-08]
[1761439801834,8.9186278,3956.0,3955.9,1e-08]
[1761439802746,8.9186278,3956.0,3954.1,0.01]
[1761439802747,4.59039715,3955.2,3954.1,0.01]
[1761439803057,2.52895655,3954.2,3954.1,0.01]
[1761439803218,7.28515655,3954.2,3954.1,0.01]
[1761439803423,7.74465655,3954.2,3954.1,0.01]
[1761439804063,8.25153655,3954.2,3954.1,0.01]
[1761439810073,8.79371926,3954.2,3954.1,0.01]
[1761439812611,3.16223655,3954.2,3954.1,0.01]
[1761439812812,6.36423655,3954.2,3954.1,0.01]
[1761439812994,7.91943655,3954.2,3954.1,0.01]
[1761439813698,8.35113655,3954.2,3954.1,0.01]
[1761439814477,4.71743655,3954.2,3954.1,0.01]
[1761439814709,7.91843655,3954.2,3954.1,0.01]
[1761439815076,8.35013655,3954.2,3954.1,0.01]
[1761439815873,8.35013655,3954.2,3954.1,1e-08]
[1761439816707,11.93370643,3954.2,3954.1,1e-08]
[1761439819477,18.39370643,3954.2,3954.1,0.00200001]
[1761439820501,14.37843655,3954.2,3954.1,0.00200001]
[1761439820690,17.96200643,3954.2,3954.1,0.00200001]
[1761439821091,18.39370643,3954.2,3954.1,0.00200001]
[1761439821312,15.73512039,3954.2,3954.1,0.00200001]
[1761439821620,18.93512039,3954.2,3954.1,0.00200001]
[1761439824610,19.61479666,3954.2,3954.1,0.00200001]
[1761439824822,18.93512039,3954.2,3954.1,0.00200001]
[1761439827337,19.84135541,3954.2,3954.1,0.00200001]
[1761439829306,18.93512039,3954.2,3954.1,0.00200001]
[1761439829902,19.8424703,3954.2,3954.1,0.00200001]
[1761439830241,16.6424703,3954.2,3954.1,0.00200001]
[1761439830424,19.4087703,3954.2,3954.1,0.00200001]
[1761439831225,18.50142039,3954.2,3954.1,0.00200001]
[1761439831630,12.72937051,3954.2,3954.1,0.01320001]
[1761439831842,13.23625051,3954.2,3954.1,0.00200001]
[1761439832043,14.79145051,3954.2,3954.1,0.00200001]
[1761439832207,13.91705269,3954.2,3954.1,0.00200001]
[1761439832541,15.22315051,3954.2,3954.1,0.00200001]
[1761439833056,16.13094914,3954.2,3954.1,0.00200001]
[1761439833255,15.22315051,3954.2,3954.1,0.00200001]
[1761439833408,16.58284226,3954.2,3954.1,0.00200001]
[1761439834211,3.2607924,3953.8,3953.7,1e-08]
[1761439834508,12.13997624,3953.8,3953.7,1e-08]
[1761439834709,12.57167624,3953.8,3953.7,1e-08]
[1761439836442,12.13997624,3953.8,3953.7,1e-08]
[1761439836647,11.91527624,3953.8,3953.7,1e-08]
[1761439839355,12.36107624,3953.8,3953.7,1e-08]
[1761439839553,13.72462105,3953.8,3953.7,1e-08]
[1761439841118,13.27882105,3953.8,3953.7,1e-08]
[1761439841318,13.72462105,3953.8,3953.7,1e-08]
[1761439841853,13.85102105,3953.8,3953.7,1e-08]
[1761439843173,20.31102105,3953.8,3953.7,1e-08]
[1761439845481,18.94747624,3953.8,3953.7,1e-08]
[1761439847470,20.31111884,3953.8,3953.7,1e-08]
[1761439847675,18.94747624,3953.8,3953.7,1e-08]
[1761439848180,18.94747624,3953.8,3953.1,0.01]
[1761439848181,4.59167627,3953.2,3953.1,0.01]
[1761439848367,11.91266011,3953.2,3953.1,0.01]
[1761439848678,13.39396234,3953.2,3953.1,0.01]
[1761439848860,13.52118115,3953.2,3953.1,0.01]
[1761439849057,13.52118115,3953.2,3951.1,0.01]
[1761439849058,16.54248265,3953.2,3951.1,0.01]
[1761439849259,4.59231632,3952.2,3951.7,0.0112]
[1761439849584,8.45613028,3952.2,3951.7,0.0112]
[1761439849884,8.45613028,3952.2,3951.1,0.01]
[1761439849885,8.45613028,3952.2,3951.5,0.0112]
[1761439852989,8.45613028,3952.2,3951.1,0.01]
[1761439853194,8.45613028,3952.2,3951.7,0.0112]
[1761439854531,8.45613028,3952.2,3951.1,0.01]
[1761439854532,2.53087669,3951.2,3951.1,0.01]
[1761439854809,7.82793636,3951.2,3951.1,0.01]
[1761439858116,7.28307669,3951.2,3951.1,0.01]
[1761439859092,7.78995669,3951.2,3951.1,0.01]
[1761439863034,7.78995669,3951.2,3950.0,40.405928]
[1761439863035,2.53151739,3950.2,3950.0,40.405928]
[1761439863330,4.08671739,3950.2,3950.0,40.405928]
[1761439864097,7.28371739,3950.2,3950.0,40.405928]
[1761439864598,7.41011739,3950.2,3950.0,40.405928]
[1761439865196,7.41011739,3950.2,3950.1,0.0212]
[1761439865400,4.21311739,3950.2,3950.1,2.62313063]
[1761439865597,4.08671739,3950.2,3950.1,0.01]
[1761439865936,4.08671739,3950.2,3950.1,0.0212]
[1761439866132,1.5552,3950.2,3950.1,0.0212]
[1761439866307,4.08671739,3950.2,3950.1,0.0212]
[1761439866508,4.08671739,3950.2,3950.1,0.01]
[1761439866904,4.08671739,3950.2,3950.1,0.0212]
[1761439868818,3.197,3950.6,3950.1,2.62313063]
[1761439868819,3.196,3950.6,3950.1,2.62313063]
[1761439869136,0.68177736,3952.1,3950.2,4.39313697]
[1761439869320,2.53087669,3951.2,3950.3,0.0112]
[1761439869528,2.53105445,3951.0,3950.4,0.70050676]
[1761439869722,5.72987417,3951.3,3950.6,4.38193697]
[1761439869925,2.53093007,3951.2,3950.6,4.38193697]
[1761439870136,2.53093007,3951.2,3950.7,0.0112]
[1761439870748,2.53082129,3951.3,3950.7,0.0112]
[1761439870948,2.5308967,3951.2,3950.8,0.32102]
[1761439871150,2.53094993,3951.1,3950.8,0.32102]
[1761439871503,2.53094993,3951.1,3950.9,0.0112]
[1761439872537,2.53092622,3951.2,3950.9,0.0112]
[1761439872754,0.01,3951.9,3950.9,0.0112]
[1761439872953,0.01,3951.9,3951.2,2.53085967]
[1761439873251,0.01,3951.9,3951.0,0.38168517]
[1761439873252,0.01,3951.9,3951.3,0.29125448]
[1761439873552,0.01,3951.9,3951.4,3.201]
[1761439873756,0.01,3951.9,3951.1,0.0112]
[1761439874053,0.01,3951.9,3951.2,3.201]
[1761439874245,2.54043018,3951.9,3951.2,3.201]
[1761439874440,2.54043018,3951.9,3951.3,0.58551962]
[1761439874643,0.01,3951.9,3951.3,0.58551962]
[1761439874977,0.01,3951.9,3951.4,0.0112]
[1761439875623,0.1264,3951.5,3951.4,0.0112]
[1761439876544,0.1264,3951.5,3951.4,3.2122]
[1761439877074,0.001,3951.6,3951.4,3.78651321]
[1761439877218,0.001,3951.6,3951.5,2.54188455]
[1761439879166,0.001,3951.6,3951.5,0.0112]
[1761439879463,0.001,3951.6,3951.5,3.2]
[1761439879775,0.001,3951.6,3951.5,3.2112]
[1761439879974,0.1274,3951.6,3951.5,3.2112]
[1761439880257,0.1274,3951.6,3951.5,3.84282738]
[1761439881527,0.1274,3951.6,3951.5,3.2112]
[1761439882063,0.1274,3951.6,3951.0,2.65740173]
[1761439882064,0.1274,3951.6,3951.1,0.0112]
[1761439882351,0.1264,3951.3,3951.2,3.2]
[1761439882745,0.1264,3951.3,3951.2,3.2112]
[1761439884417,0.1264,3951.3,3950.8,0.0112]
[1761439884752,0.1264,3951.3,3950.9,3.2132]
[1761439884928,0.1264,3951.3,3950.9,0.0112]
[1761439885128,0.1264,3951.0,3950.9,3.2132]
[1761439887776,0.1264,3951.0,3950.9,3.202]
[1761439890081,0.1264,3951.0,3950.9,3.201]
[1761439891083,0.1264,3951.0,3950.3,2.65783594]
[1761439891084,2.65742336,3951.0,3950.3,0.1264]
[1761439891283,0.1264,3950.7,3950.3,0.86693173]
[1761439891566,0.1264,3950.7,3950.1,0.012]
[1761439891778,5.73074148,3951.5,3950.2,3.2]
[1761439891779,0.1264,3950.4,3950.2,3.2]
[1761439893599,0.1264,3950.4,3950.3,3.2]
[1761439893800,0.1264,3950.4,3950.1,0.012]
[1761439893977,2.53132992,3950.5,3950.2,3.2]
[1761439894484,0.2363,3950.9,3950.2,3.2]
[1761439894485,0.1264,3950.3,3950.2,3.2]
[1761439895055,0.1264,3950.3,3950.2,3.2112]
[1761439896595,0.1264,3950.3,3950.2,3.2]
[1761439898086,0.1264,3950.3,3950.2,5.80193063]
[1761439898388,0.1264,3950.3,3950.2,8.34464802]
[1761439899486,0.1264,3950.3,3950.2,8.33344802]
[1761439899693,1.5562,3951.6,3950.2,5.81313063]
[1761439899694,0.1264,3950.7,3950.2,5.81313063]
[1761439899889,0.1264,3950.7,3950.2,3.2]
[1761439900187,0.1264,3950.4,3950.3,3.2]
[1761439900588,0.1264,3950.4,3950.1,0.012]
[1761439900894,0.1264,3950.4,3950.2,3.2]
[1761439901189,0.1264,3950.4,3950.1,0.012]
[1761439901391,0.1264,3950.4,3950.2,3.199]
[1761439903192,0.1264,3950.4,3950.1,0.012]
[1761439903389,0.1264,3950.4,3950.3,3.199]
[1761439908594,0.1264,3950.4,3950.3,5.80093063]
[1761439908796,0.1264,3950.4,3950.3,5.81213063]
[1761439909119,0.1264,3950.4,3950.3,8.34358393]
[1761439909273,0.1264,3950.7,3950.3,5.81213063]
[1761439909472,0.1264,3950.7,3950.4,0.0112]
[1761439909783,0.1264,3950.7,3950.4,3.39078661]
[1761439910316,0.1264,3950.7,3950.5,0.0112]
[1761439910606,0.1264,3950.7,3950.6,3.197]
[1761439910899,0.1264,3950.8,3950.6,5.72826107]
[1761439911423,0.1264,3950.8,3950.7,3.22647617]
[1761439911767,0.001,3951.6,3950.9,2.53104742]
[1761439911970,0.001,3951.6,3950.7,0.6699672]
[1761439911971,0.1264,3951.2,3951.0,3.197]
[1761439913004,0.1264,3951.2,3951.0,3.2082]
[1761439913388,0.1264,3951.2,3951.0,5.7392045]
[1761439913892,0.1264,3951.2,3950.7,3.18995866]
[1761439913893,0.1264,3951.2,3950.7,0.6587672]
[1761439914089,0.1264,3951.0,3950.9,2.53100806]
[1761439914505,0.1264,3951.0,3950.9,2.54220806]
[1761439914678,0.001,3951.1,3951.0,2.5310048]
[1761439915002,0.001,3951.1,3951.0,0.82693574]
[1761439915169,0.001,3951.1,3951.0,3.196]
[1761439915499,0.001,3951.1,3950.6,0.1264]
[1761439915691,0.001,3951.1,3950.7,3.196]
[1761439915895,0.001,3951.1,3950.7,3.2072]
[1761439916094,0.001,3951.1,3950.8,0.0112]
[1761439916301,0.001,3951.1,3950.9,0.33336]
[1761439916513,0.001,3951.1,3951.0,3.197]
[1761439918343,0.001,3951.1,3950.9,0.33336]
[1761439918523,0.001,3951.1,3951.0,3.196]
[1761439918524,0.4647,3951.1,3951.0,3.196]
[1761439918723,0.5911,3951.1,3951.0,3.196]
[1761439919052,0.1274,3951.1,3951.0,3.196]
[1761439921707,0.1274,3951.1,3951.0,3.51437299]
[1761439923445,0.001,3951.6,3951.5,2.53068455]
[1761439923645,0.001,3951.6,3951.5,6.81583141]
[1761439923846,0.001,3951.6,3951.5,6.80172457]
[1761439924072,0.001,3951.6,3951.5,10.01258158]
[1761439925424,0.001,3951.6,3951.5,4.26569703]
[1761439925625,0.001,3951.6,3951.5,7.48089703]
[1761439925960,0.001,3951.6,3951.5,10.01158158]
[1761439930219,0.01,3951.9,3951.8,2.53049243]
[1761439930408,0.01,3951.9,3951.8,10.82628207]
[1761439930612,0.01,3951.9,3951.8,12.39268207]
[1761439933569,0.01,3951.9,3951.8,12.51908207]
[1761439937242,0.001,3952.4,3952.1,2.53025741]
[1761439937445,0.001,3952.4,3952.3,6.11569687]
[1761439937645,0.001,3952.4,3952.3,7.78797499]
[1761439937829,0.001,3952.4,3952.3,7.79917499]
[1761439942673,0.001,3952.4,3952.3,7.90040506]
[1761439944886,0.01,3952.9,3952.8,2.52985225]
[1761439945073,0.01,3952.9,3952.8,9.33967534]
[1761439945281,0.01,3952.9,3952.8,10.63893776]
[1761439945747,0.01,3952.9,3952.8,10.50133776]
[1761439945953,0.01,3952.9,3952.8,10.72895246]
[1761439947949,0.01,3952.9,3952.8,7.52995246]
[1761439948182,0.01,3952.9,3952.8,10.72795246]
[1761439950867,0.01,3952.9,3952.8,1.41457564]
[1761439951194,0.6874,3952.9,3952.8,5.85525225]
[1761439951493,0.6874,3952.9,3952.8,6.91092457]
[1761439951694,0.6874,3952.9,3952.8,9.44077682]
[1761439952074,0.01,3952.9,3952.8,9.44077682]
[1761439952273,0.01,3952.9,3952.8,10.63785187]
[1761439952474,0.011,3952.9,3952.8,10.63785187]
[1761439957595,0.011,3952.9,3952.8,10.63685187]
[1761439964247,0.6773,3952.9,3952.8,7.43885187]
[1761439964456,0.6773,3952.9,3952.8,10.63485187]
[1761439966264,0.6773,3952.9,3952.8,7.43885187]
[1761439966464,0.6773,3952.9,3952.8,10.63385187]
[1761439966664,0.011,3952.9,3952.8,10.63385187]
[1761439967376,0.6773,3952.9,3952.8,7.97759962]
[1761439967539,0.6773,3952.9,3952.8,10.50745187]
[1761439967741,0.011,3952.9,3952.8,10.50745187]
[1761439969658,0.4415,3952.9,3952.8,10.50745187]
[1761439969864,0.011,3952.9,3952.8,10.50745187]
[1761439975586,0.4415,3952.9,3952.8,10.50745187]
[1761439976287,0.011,3952.9,3952.8,10.50745187]
[1761439977356,0.011,3952.9,3952.8,10.50545187]
[1761439978007,0.4415,3952.9,3952.8,10.50545187]
[1761439978781,0.011,3952.9,3952.8,10.50545187]
[1761439981703,0.011,3952.9,3952.8,10.50345187]
[1761439984075,0.011,3952.9,3952.8,10.62985187]
[1761439984690,0.011,3952.9,3952.8,11.41873076]
[1761439988881,0.011,3952.9,3952.8,12.97393076]
[1761439989300,0.011,3952.9,3952.8,12.97293076]
[1761439990421,0.2374,3952.9,3952.8,7.0443273]
[1761439990605,0.6735,3952.9,3952.8,7.0443273]